bitfinex-derivatives/quotes_SOLF0:USTF0_20241215
["timestamp","ask_amount","ask_price","bid_price","bid_amount"]
[1734268458633,2.2834,219.03,219.0,8.77116535]
[1734268458832,2.2834,219.03,218.98,2.2838]
[1734268459034,2.2836,219.01,218.99,3.54136016]
[1734268459334,2.14,219.04,219.0,5.22997171]
[1734268459537,2.2835,219.01,218.96,5.46974498]
[1734268459838,2.2835,219.01,218.97,25.40697078]
[1734268460029,2.2835,219.01,218.98,17.14889443]
[1734268460229,2.2835,219.01,218.99,8.77629956]
[1734268460432,2.2835,219.01,219.0,5.23287179]
[1734268461639,2.2837,219.0,218.96,5.46974498]
[1734268461836,2.2837,219.0,218.97,16.20133149]
[1734268462035,2.2837,219.0,218.98,8.78022396]
[1734268462239,2.2837,219.0,218.99,8.78022396]
[1734268465132,2.2837,219.0,218.99,8.7827058]
[1734268465542,2.2837,219.0,218.99,8.78342252]
[1734268465732,2.2837,219.0,218.99,17.16380491]
[1734268466337,2.2837,219.0,218.99,25.43091523]
[1734268468341,2.2837,219.0,218.99,25.44046162]
[1734268469333,2.14,219.04,218.99,25.44046162]
[1734268469537,2.2835,219.01,219.0,25.44046162]
[1734268469939,2.2835,219.01,219.0,22.84934762]
[1734268470843,2.2835,219.01,219.0,25.44246698]
[1734268471340,2.2835,219.01,219.0,25.44601985]
[1734268471835,2.2835,219.01,219.0,25.45127234]
[1734268473336,2.2835,219.01,219.0,22.85815298]
[1734268473537,2.2835,219.01,219.0,17.17878143]
[1734268474037,2.2835,219.01,219.0,8.7915973]
[1734268474541,2.2835,219.01,219.0,3.54960722]
[1734268474742,2.2835,219.01,219.0,8.79024338]
[1734268475641,5.44975319,219.09,219.0,8.79024338]
[1734268475843,2.14,219.08,219.01,17.17133399]
[1734268476041,2.14,219.08,218.96,5.46974498]
[1734268476042,2.14,219.08,219.02,8.79024338]
[1734268476242,2.2832,219.05,219.03,5.24063616]
[1734268476445,2.2832,219.05,218.99,3.7595]
[1734268476639,2.2832,219.05,219.0,25.42594997]
[1734268476942,2.2832,219.05,219.01,22.83536134]
[1734268477136,2.2832,219.05,219.02,8.78283128]
[1734268477340,2.2832,219.05,219.03,8.78283128]
[1734268477641,2.2832,219.05,218.99,3.7595]
[1734268477842,2.2832,219.05,219.0,11.8082361]
[1734268478140,2.2832,219.05,219.01,22.83155773]
[1734268478341,2.2832,219.05,219.02,8.78136835]
[1734268478542,2.2832,219.05,219.03,8.78136835]
[1734268478737,2.2832,219.05,218.99,3.7595]
[1734268479046,2.2832,219.05,219.0,25.42618821]
[1734268479240,2.2832,219.05,219.01,22.83565608]
[1734268479437,2.2832,219.05,219.02,8.78294465]
[1734268479635,2.2832,219.05,219.03,8.78294465]
[1734268479839,2.2832,219.05,218.99,3.7595]
[1734268480035,2.2832,219.05,219.0,25.42580968]
[1734268480336,2.2832,219.05,219.01,22.83531602]
[1734268480535,2.2832,219.05,219.02,8.78281385]
[1734268480747,2.2832,219.05,219.03,3.54603366]
[1734268481044,2.2832,219.05,219.04,5.2367129]
[1734268483943,2.2832,219.05,219.04,5.23627549]
[1734268485744,2.14,219.06,218.99,3.7595]
[1734268485943,2.2832,219.04,219.0,25.42212203]
[1734268486139,2.2832,219.04,219.01,25.42212203]
[1734268486338,2.2832,219.04,219.02,8.78152834]
[1734268486537,2.2832,219.04,219.03,8.78152834]
[1734268487145,2.2832,219.04,219.03,3.54550759]
[1734268487452,2.2832,219.04,219.03,8.78345758]
[1734268490347,2.2832,219.04,219.03,5.23794999]
[1734268490648,2.2832,219.04,219.03,8.7849861]
[1734268493548,2.2832,219.04,219.03,3.54703611]
[1734268493749,2.2832,219.04,219.03,8.78559923]
[1734268493950,2.2832,219.04,219.03,5.23856312]
[1734268495150,2.2832,219.04,219.03,8.78623151]
[1734268495848,2.2832,219.04,219.03,5.23856312]
[1734268496052,2.2834,219.03,218.99,1.4758]
[1734268496351,2.2834,219.03,219.0,19.7647862]
[1734268496546,2.2834,219.03,219.01,8.78841323]
[1734268496846,2.2834,219.03,219.02,5.24010564]
[1734268497850,4.4234,219.03,219.02,5.24010564]
[1734268498249,2.2832,219.04,219.02,5.24010564]
[1734268498457,2.14,219.05,219.03,5.23965016]
[1734268498657,2.14,219.05,218.99,1.4758]
[1734268498957,2.14,219.05,219.0,25.43855108]
[1734268499155,2.14,219.05,219.01,25.43855108]
[1734268499360,2.14,219.05,219.02,17.17024858]
[1734268499654,4.423,219.07,219.03,17.16811004]
[1734268499854,2.283,219.07,219.04,8.78720825]
[1734268500055,4.423,219.07,219.05,5.23779116]
[1734268500355,4.423,219.07,219.02,1.5495]
[1734268500659,4.423,219.07,219.03,17.15915077]
[1734268500958,2.283,219.06,219.04,8.78148671]
[1734268501161,2.283,219.06,219.05,5.23604003]
[1734268501757,2.2832,219.05,219.02,1.5495]
[1734268501953,2.2832,219.05,219.03,5.2362144]
[1734268502260,2.2832,219.05,219.02,1.5495]
[1734268502461,2.2832,219.05,219.03,5.23616535]
[1734268502760,2.2832,219.05,219.02,1.5495]
[1734268502961,2.2832,219.05,219.03,5.2361878]
[1734268503155,2.2832,219.05,219.02,1.5495]
[1734268503356,2.2832,219.05,219.03,5.23625895]
[1734268503556,2.2832,219.05,219.02,1.5495]
[1734268503863,2.14,219.07,219.03,8.78192401]
[1734268504057,2.2832,219.04,219.02,1.5495]
[1734268504267,2.2832,219.04,219.03,8.78210042]
[1734268505362,2.2832,219.04,219.03,5.23636574]
[1734268505666,2.2832,219.04,219.03,8.74116885]
[1734268505857,2.2837,218.99,218.94,1.5109]
[1734268506058,2.2837,218.99,218.95,25.31667825]
[1734268506365,2.2838,218.98,218.96,25.31667825]
[1734268506561,2.2838,218.98,218.97,25.31667825]
[1734268506765,2.2838,218.98,218.97,17.11697491]
[1734268508565,2.2838,218.98,218.97,17.11561688]
[1734268509469,2.2838,218.98,218.97,8.74061802]
[1734268509966,2.2838,218.98,218.97,17.11816673]
[1734268510169,2.2838,218.98,218.97,8.74061802]
[1734268511063,2.2841,218.96,218.94,1.5109]
[1734268511263,2.2841,218.96,218.95,5.23683699]
[1734268511470,4.4241,218.96,218.95,5.23683699]
[1734268511672,2.14,218.96,218.92,1.5569]
[1734268511966,2.2842,218.95,218.93,8.74197065]
[1734268512166,2.2842,218.95,218.94,5.23530426]
[1734268512364,2.2842,218.95,218.92,1.5569]
[1734268512562,2.2842,218.95,218.93,5.23338956]
[1734268512770,2.2843,218.94,218.92,1.5569]
[1734268512971,2.2843,218.94,218.93,5.23356224]
[1734268513374,2.2843,218.94,218.88,3.8218]
[1734268513375,2.2845,218.92,218.88,1.5369]
[1734268513670,2.2845,218.92,218.89,19.69826759]
[1734268513869,2.2845,218.92,218.9,8.73736628]
[1734268514064,2.2845,218.92,218.91,5.23251032]
[1734268514261,2.2845,218.92,218.88,1.5369]
[1734268514768,2.2845,218.92,218.89,8.73378831]
[1734268514963,2.2845,218.92,218.88,1.5369]
[1734268515169,2.14,218.91,218.88,1.5369]
[1734268515671,4.4247,218.91,218.88,1.5369]
[1734268516069,4.4247,218.91,218.89,5.22735655]
[1734268516370,4.4247,218.91,218.88,1.5369]
[1734268517169,2.14,218.91,218.88,1.5369]
[1734268517371,5.59246165,219.01,218.88,1.5369]
[1734268517572,2.14,219.0,218.89,17.07978118]
[1734268517873,2.14,219.0,218.9,8.72298218]
[1734268518073,2.14,219.0,218.91,5.22452932]
[1734268518273,2.14,219.0,218.88,1.5369]
[1734268518474,2.14,219.0,218.92,5.22312225]
[1734268518475,2.2839,218.97,218.92,5.22312225]
[1734268518675,2.2839,218.97,218.93,5.22312225]
[1734268518872,2.2839,218.97,218.91,2.2846]
[1734268519177,2.2839,218.97,218.92,5.22244631]
[1734268519375,2.2839,218.97,218.93,5.22183858]
[1734268519675,2.2839,218.97,218.92,2.2844]
[1734268519879,2.2839,218.97,218.93,5.22168617]
[1734268520072,2.2839,218.97,218.92,2.2844]
[1734268520272,2.2838,218.98,218.88,1.5369]
[1734268520479,2.2838,218.98,218.93,2.2843]
[1734268521779,2.2838,218.98,218.88,1.5369]
[1734268522078,2.2838,218.98,218.92,2.2844]
[1734268522278,2.2838,218.98,218.93,5.22053782]
[1734268522474,2.2838,218.98,218.92,2.2844]
[1734268522680,2.2838,218.98,218.93,5.22051314]
[1734268522881,2.14,218.99,218.94,5.22051314]
[1734268523078,2.14,218.99,218.88,1.5369]
[1734268523079,2.14,218.99,218.95,5.21973646]
[1734268523279,2.14,218.99,218.96,5.21973646]
[1734268523477,2.14,218.99,218.95,2.2841]
[1734268523775,2.14,218.99,218.96,5.21953284]
[1734268523975,2.14,218.99,218.95,2.2841]
[1734268524174,2.14,218.99,218.96,5.2195343]
[1734268524375,4.4237,219.0,218.95,2.2841]
[1734268524575,4.4237,219.0,218.96,5.21954525]
[1734268524770,4.4237,219.0,218.95,2.2841]
[1734268525078,4.4237,219.0,218.96,5.21945931]
[1734268525279,4.4237,219.0,218.95,2.2841]
[1734268525481,4.4237,219.0,218.96,5.21985241]
[1734268525680,4.4237,219.0,218.95,2.2841]
[1734268525875,4.4237,219.0,218.96,5.22094668]
[1734268526081,4.4237,219.0,218.95,2.2841]
[1734268529375,4.4237,219.0,218.96,5.22228052]
[1734268529579,4.4237,219.0,218.95,2.2841]
[1734268530288,2.2838,218.99,218.95,2.2841]
[1734268531087,2.2838,218.99,218.94,2.2842]
[1734268531782,2.2838,218.99,218.95,5.22570391]
[1734268531983,2.2838,218.99,218.94,2.2842]
[1734268532178,2.14,219.0,218.95,5.22573409]
[1734268532384,2.14,219.0,218.92,2.2844]
[1734268532683,2.14,219.0,218.93,5.22749611]
[1734268532885,2.14,219.0,218.91,2.2846]
[1734268532886,2.2841,218.96,218.91,2.2846]
[1734268533179,2.2841,218.96,218.92,8.72152772]
[1734268533381,2.14,219.0,218.93,5.22784237]
[1734268533579,2.14,219.0,218.89,2.2848]
[1734268533781,2.14,219.0,218.9,17.0880382]
[1734268533981,2.14,219.0,218.91,17.0880382]
[1734268534287,2.14,219.0,218.92,8.72285759]
[1734268534478,2.14,219.0,218.88,1.5369]
[1734268534479,2.284,218.97,218.88,1.5369]
[1734268534678,2.14,219.0,218.93,5.2279364]
[1734268534876,2.14,219.0,218.91,2.2846]
[1734268535081,2.14,219.0,218.92,8.72271045]
[1734268535276,2.14,219.0,218.93,5.22815501]
[1734268535480,2.14,219.0,218.91,2.2846]
[1734268535686,2.14,219.0,218.92,8.72315203]
[1734268535877,2.14,219.0,218.91,2.2846]
[1734268535878,2.14,219.0,218.93,5.22841707]
[1734268536080,2.14,219.0,218.91,2.2846]
[1734268536284,2.14,219.0,218.92,8.72311148]
[1734268536478,2.14,219.0,218.93,5.22839375]
[1734268536682,2.284,218.96,218.91,2.2846]
[1734268536882,2.14,219.0,218.92,19.37280012]
[1734268537092,2.14,219.0,218.93,8.72309168]
[1734268537283,2.14,219.0,218.94,5.22831777]
[1734268537487,2.14,219.0,218.92,2.2844]
[1734268537685,2.14,219.0,218.93,5.22900585]
[1734268537989,2.14,219.0,218.94,5.22900585]
[1734268538190,2.14,219.0,218.92,2.2844]
[1734268538393,2.2838,218.98,218.93,8.72836506]
[1734268538586,2.2838,218.98,218.94,8.72872434]
[1734268538882,2.2838,218.98,218.92,2.2844]
[1734268538883,2.2838,218.98,218.95,5.23138415]
[1734268539088,2.2837,218.99,218.94,2.2843]
[1734268539287,2.2837,218.99,218.95,8.72850251]
[1734268539592,2.2837,218.99,218.96,5.23152181]
[1734268539889,2.2837,218.99,218.88,6.05376737]
[1734268540085,2.14,219.0,218.89,25.28477719]
[1734268540287,2.14,219.0,218.9,25.28477719]
[1734268540492,2.14,219.0,218.91,19.68928741]
[1734268540694,2.2839,218.98,218.92,13.60363999]
[1734268540986,2.14,219.0,218.93,5.23216923]
[1734268541287,2.14,219.0,218.94,5.23216923]
[1734268541487,2.2843,218.94,218.89,2.2848]
[1734268541686,2.2843,218.94,218.9,19.69773218]
[1734268541687,4.4043,218.94,218.9,19.69773218]
[1734268541885,2.2844,218.93,218.91,17.10831495]
[1734268542087,2.12,218.94,218.88,1.5369]
[1734268542286,2.12,218.94,218.85,1.5489]
[1734268542487,2.12,218.94,218.86,5.23783814]
[1734268542791,2.12,218.94,218.87,5.23783814]
[1734268542990,2.12,218.94,218.85,1.5489]
[1734268543186,2.12,218.94,218.86,5.23850584]
[1734268543391,2.12,218.94,218.85,1.5489]
[1734268543589,2.2849,218.88,218.85,1.5489]
[1734268543885,2.12,218.87,218.85,1.5489]
[1734268544085,2.12,218.87,218.82,1.4589]
[1734268544386,2.12,218.87,218.83,17.12944182]
[1734268544592,2.12,218.87,218.78,7.06476803]
[1734268544883,2.12,218.87,218.79,8.7471176]
[1734268545084,2.2854,218.84,218.8,5.24257722]
[1734268545388,2.2854,218.84,218.78,1.5452]
[1734268545592,2.2854,218.84,218.79,5.23995104]
[1734268545783,2.2854,218.84,218.8,5.23995104]
[1734268545983,2.2854,218.84,218.78,1.5452]
[1734268546293,2.2854,218.84,218.79,5.23931204]
[1734268546591,2.2854,218.84,218.78,3.8311]
[1734268546782,2.2854,218.84,218.79,5.23589955]
[1734268546986,2.2854,218.84,218.78,3.8311]
[1734268547289,2.12,218.85,218.79,17.10590548]
[1734268547593,2.12,218.85,218.8,17.10640837]
[1734268547789,2.12,218.85,218.81,8.73417657]
[1734268547987,2.12,218.85,218.82,5.23594612]
[1734268548183,2.12,218.85,218.78,1.5452]
[1734268548390,2.12,218.85,218.79,5.23231284]
[1734268548590,2.2856,218.82,218.78,1.5452]
[1734268548784,2.12,218.85,218.78,1.5452]
[1734268549391,2.12,218.85,218.75,1.4589]
[1734268549896,2.2859,218.79,218.75,1.4589]
[1734268550191,4.4059,218.79,218.72,1.4486]
[1734268550390,2.286,218.78,218.72,1.4486]
[1734268550890,2.286,218.78,218.73,5.23216579]
[1734268551094,2.12,218.8,218.72,1.4486]
[1734268551396,2.12,218.79,218.73,5.56735628]
[1734268551690,2.12,218.78,218.73,5.56735628]
[1734268551895,2.12,218.77,218.73,5.56735628]
[1734268552592,4.406,218.77,218.72,1.4486]
[1734268552793,2.14,218.78,218.72,1.4486]
[1734268552999,2.14,218.79,218.73,5.22947221]
[1734268553295,2.14,218.81,218.76,2.2861]
[1734268553499,2.14,218.82,218.76,2.2861]
[1734268553798,2.14,218.81,218.76,2.2861]
[1734268554190,2.14,218.81,218.74,2.2863]
[1734268554893,4.4257,218.81,218.75,2.2862]
[1734268555095,2.14,218.81,218.75,2.2862]
[1734268555292,2.14,218.81,218.72,1.4486]
[1734268555498,2.286,218.78,218.73,2.2864]
[1734268555994,2.14,218.81,218.72,1.4486]
[1734268556195,2.14,218.81,218.72,3.7351]
[1734268556397,2.14,218.81,218.72,1.4486]
[1734268556705,2.2862,218.76,218.72,1.4486]
[1734268556999,2.14,218.76,218.72,1.4486]
[1734268557200,2.14,218.76,218.69,1.4409]
[1734268557894,2.2862,218.75,218.69,9.25929265]
[1734268558094,2.14,218.76,218.69,6.97249265]
[1734268559498,4.4261,218.76,218.71,2.2866]
[1734268560295,2.14,218.81,218.69,6.97249265]
[1734268560499,2.14,218.8,218.7,19.62361967]
[1734268560700,2.14,218.8,218.71,17.04335393]
[1734268560901,4.4258,218.8,218.74,2.2862]
[1734268561201,2.14,218.8,218.69,6.97249265]
[1734268561502,2.14,218.8,218.7,22.612196]
[1734268561702,2.14,218.8,218.71,8.69699846]
[1734268562003,2.14,218.8,218.72,8.69699846]
[1734268562206,2.14,218.8,218.73,5.21247848]
[1734268562500,1.4937,218.89,218.76,2.286]
[1734268562501,2.2856,218.81,218.76,2.286]
[1734268563704,4.4255,218.82,218.78,2.2859]
[1734268563903,4.4255,218.82,218.74,1.4633]
[1734268564501,1.4937,218.89,218.74,1.4633]
[1734268564701,2.14,218.88,218.75,10.09851181]
[1734268564900,2.14,218.88,218.76,5.20460264]
[1734268565097,2.14,218.88,218.75,1.4154]
[1734268565304,2.14,218.88,218.76,5.20408188]
[1734268565504,2.2854,218.84,218.79,2.2858]
[1734268565905,2.14,218.88,218.75,1.4154]
[1734268566102,2.2852,218.85,218.81,2.2856]
[1734268566600,2.2852,218.85,218.82,2.2855]
[1734268566601,2.12,218.85,218.82,2.2855]
[1734268567403,4.4052,218.85,218.8,2.2856]
[1734268569201,2.12,218.85,218.77,1.5149]
[1734268569406,2.12,218.85,218.78,5.20538281]
[1734268569608,2.12,218.85,218.79,5.20433839]
[1734268569906,2.12,218.85,218.82,2.2854]
[1734268570099,2.12,218.85,218.77,1.5149]
[1734268570300,2.12,218.85,218.78,8.68440083]
[1734268570606,2.2848,218.89,218.79,7.32504433]
[1734268570807,2.12,218.9,218.79,2.12]
[1734268571007,2.12,218.93,218.87,2.285]
[1734268571205,2.12,218.93,218.79,2.12]
[1734268571399,2.2847,218.9,218.8,19.59452371]
[1734268571603,2.2847,218.9,218.81,17.01825842]
[1734268571907,2.2847,218.9,218.82,18.55192257]
[1734268572107,2.2849,218.88,218.83,5.20680537]
[1734268572310,2.12,218.93,218.82,1.5344]
[1734268573202,2.2847,218.9,218.85,2.2852]
[1734268573398,2.12,218.93,218.85,2.2852]
[1734268573708,2.2847,218.9,218.82,1.5344]
[1734268573907,2.2847,218.9,218.86,2.2851]
[1734268576505,2.12,218.92,218.82,1.5344]
[1734268576706,2.12,218.92,218.83,26.71263771]
[1734268576906,2.12,218.92,218.84,5.6055521]
[1734268577211,2.12,218.92,218.85,8.69987987]
[1734268577414,2.12,218.92,218.86,5.21432777]
[1734268577605,2.12,218.94,218.85,1.5504]
[1734268577908,2.12,218.94,218.86,17.04473425]
[1734268578100,2.12,218.94,218.87,5.21557709]
[1734268578302,2.12,218.94,218.85,1.5504]
[1734268578500,2.12,218.94,218.86,8.70186027]
[1734268578799,2.12,218.94,218.87,5.21559979]
[1734268579004,2.12,218.94,218.85,1.5504]
[1734268579203,2.2846,218.92,218.86,5.2160211]
[1734268579402,2.12,218.94,218.87,5.2160211]
[1734268579605,2.12,218.94,218.85,1.5504]
[1734268579811,2.2847,218.91,218.87,2.285]
[1734268580910,2.2847,218.91,218.86,2.2851]
[1734268581705,2.12,218.94,218.85,1.5504]
[1734268582212,2.12,218.94,218.81,2.2856]
[1734268582414,2.12,218.94,218.83,5.22056384]
[1734268582609,2.12,218.94,218.81,2.2856]
[1734268583910,2.2851,218.86,218.8,7.67783608]
[1734268584106,4.4051,218.86,218.8,7.67783608]
[1734268584615,2.12,218.86,218.8,5.39213608]
[1734268584805,2.12,218.89,218.83,5.22522807]
[1734268585006,2.12,218.89,218.84,5.22522807]
[1734268585207,2.12,218.89,218.85,2.2852]
[1734268585414,2.12,218.89,218.81,1.4411]
[1734268585610,2.12,218.89,218.83,11.00317978]
[1734268585813,2.12,218.89,218.83,2.2853]
[1734268586414,2.2849,218.88,218.83,2.2853]
[1734268586918,2.2851,218.86,218.81,3.7266]
[1734268587114,2.2851,218.86,218.83,5.2271036]
[1734268587422,2.12,218.89,218.8,5.39213608]
[1734268587606,2.2854,218.84,218.79,2.2857]
[1734268588111,2.12,218.89,218.79,2.2857]
[1734268588311,2.12,218.89,218.8,5.23021034]
[1734268588511,2.12,218.89,218.79,2.2857]
[1734268588713,2.12,218.89,218.8,5.23021034]
[1734268588906,2.12,218.89,218.79,2.2857]
[1734268589107,2.2854,218.83,218.79,2.2857]
[1734268589313,2.12,218.84,218.78,1.4929]
[1734268589511,2.12,218.83,218.78,1.4929]
[1734268590015,2.2855,218.82,218.78,1.4929]
[1734268590210,2.12,218.83,218.76,2.286]
[1734268590517,2.12,218.83,218.78,2.2859]
[1734268591716,4.4055,218.83,218.78,2.2859]
[1734268591911,4.4055,218.83,218.72,1.4879]
[1734268591912,2.12,218.83,218.76,2.2861]
[1734268592817,2.2857,218.81,218.76,2.2861]
[1734268593220,2.2855,218.82,218.77,2.286]
[1734268593715,4.4054,218.83,218.72,1.4879]
[1734268593912,2.12,218.83,218.73,25.28613358]
[1734268594116,2.12,218.83,218.74,25.28613358]
[1734268594418,2.2859,218.79,218.75,17.1013765]
[1734268594617,2.12,218.83,218.76,8.72965507]
[1734268594819,2.12,218.83,218.77,5.23232589]
[1734268594820,2.2859,218.79,218.77,5.23232589]
[1734268595117,2.12,218.78,218.71,1.4203]
[1734268595323,2.12,218.77,218.72,5.23526985]
[1734268595518,1.444,218.87,218.69,5.53159265]
[1734268595519,2.12,218.76,218.69,7.81839265]
[1734268595720,2.12,218.75,218.7,17.11238307]
[1734268596016,2.12,218.74,218.71,3.50006682]
[1734268596215,2.12,218.73,218.72,5.23560318]
[1734268597419,2.12,218.73,218.69,7.81839265]
[1734268597615,2.12,218.73,218.7,8.73530135]
[1734268597815,2.12,218.73,218.71,5.23535945]
[1734268598023,2.12,218.73,218.69,5.53159265]
[1734268598223,2.12,218.73,218.7,5.23538397]
[1734268598527,2.12,218.73,218.69,5.53159265]
[1734268598722,2.12,218.73,218.68,2.287]
[1734268598723,2.2866,218.72,218.66,3.8309]
[1734268598924,2.2866,218.72,218.7,5.23448179]
[1734268599123,2.12,218.73,218.66,3.8309]
[1734268599424,2.2867,218.71,218.67,8.73326988]
[1734268599619,2.2867,218.71,218.68,5.23398597]
[1734268599821,2.2867,218.71,218.66,3.8309]
[1734268600020,2.2867,218.71,218.67,8.73142398]
[1734268600220,2.12,218.73,218.68,5.23298163]
[1734268600421,2.12,218.73,218.66,7.01116714]
[1734268600617,2.12,218.73,218.67,8.72835723]
[1734268600818,2.12,218.73,218.68,5.23114552]
[1734268601024,2.12,218.73,218.66,7.01116714]
[1734268601327,2.2866,218.72,218.67,7.51965465]
[1734268601519,2.2866,218.72,218.67,2.2871]
[1734268602923,2.12,218.73,218.68,5.2257594]
[1734268603229,2.12,218.73,218.6,1.89444]
[1734268603428,1.44,218.72,218.61,8.72224115]
[1734268603623,1.44,218.72,218.62,5.22729568]
[1734268603824,1.44,218.72,218.61,2.2877]
[1734268604030,1.44,218.72,218.62,5.22777419]
[1734268604333,2.2872,218.66,218.61,2.2877]
[1734268604632,4.4072,218.66,218.61,2.2877]
[1734268606132,4.4072,218.66,218.61,7.82452305]
[1734268606433,2.12,218.68,218.64,2.2873]
[1734268606737,2.12,218.69,218.61,5.53682305]
[1734268607939,2.12,218.69,218.6,0.38554]
[1734268608131,2.2875,218.63,218.6,0.38554]
[1734268608337,4.4075,218.63,218.6,0.38554]
[1734268608939,2.12,218.63,218.6,0.38554]
[1734268609238,2.2876,218.62,218.6,0.38554]
[1734268609432,2.12,218.63,218.6,0.38554]
[1734268609632,2.12,218.63,218.49,1.5328]
[1734268610246,2.12,218.63,218.43,1.524]
[1734268610543,2.12,218.63,218.44,8.70811817]
[1734268610743,2.2885,218.54,218.46,5.4640752]
[1734268610944,2.12,218.53,218.46,5.4640752]
[1734268611241,2.12,218.52,218.48,2.289]
[1734268611442,2.12,218.51,218.48,2.289]
[1734268613838,2.12,218.51,218.49,2.2889]
[1734268615343,2.12,218.51,218.47,2.2891]
[1734268615642,2.12,218.51,218.46,5.4640752]
[1734268615843,2.12,218.51,218.48,2.289]
[1734268616547,1.495,218.69,218.46,5.4640752]
[1734268616746,2.12,218.68,218.47,5.19409969]
[1734268616945,1.495,218.69,218.47,1.5366]
[1734268617145,2.2876,218.62,218.52,2.2886]
[1734268617342,2.12,218.61,218.52,2.2886]
[1734268617538,1.495,218.69,218.52,2.2886]
[1734268617539,2.12,218.6,218.52,2.2886]
[1734268617846,2.12,218.59,218.52,2.2886]
[1734268618148,2.2881,218.57,218.51,2.2887]
[1734268618344,2.12,218.56,218.51,2.2887]
[1734268620443,2.2887,218.52,218.46,7.7532752]
[1734268620744,2.12,218.51,218.46,7.7532752]
[1734268620950,2.12,218.5,218.46,7.7532752]
[1734268621244,2.12,218.49,218.46,7.7532752]
[1734268621450,2.12,218.49,218.43,1.524]
[1734268621749,2.12,218.49,218.45,5.38818251]
[1734268621943,2.12,218.51,218.45,5.38818251]
[1734268622143,2.12,218.51,218.49,2.2889]
[1734268622345,2.12,218.51,218.45,5.38818251]
[1734268622649,2.12,218.51,218.46,5.18947021]
[1734268622851,2.12,218.51,218.47,2.2891]
[1734268623647,2.12,218.51,218.31,6.31046837]
[1734268623845,2.2897,218.42,218.37,2.59666]
[1734268624148,2.12,218.41,218.37,2.59666]
[1734268624945,1.4118,218.51,218.37,5.74600634]
[1734268625147,2.12,218.5,218.4,2.2899]
[1734268625451,2.2896,218.43,218.37,5.74600634]
[1734268625652,2.12,218.42,218.38,2.2901]
[1734268626054,2.12,218.42,218.39,2.29]
[1734268626449,2.2895,218.44,218.39,2.29]
[1734268626645,1.4118,218.51,218.37,5.74600634]
[1734268626856,2.12,218.5,218.38,8.66339389]
[1734268627152,2.12,218.5,218.39,8.66339389]
[1734268627351,1.4118,218.51,218.4,5.19177557]
[1734268627545,2.12,218.5,218.41,6.62911864]
[1734268627854,2.12,218.5,218.42,8.65933215]
[1734268628045,2.12,218.5,218.43,5.18971864]
[1734268628347,2.12,218.5,218.41,1.4394]
[1734268629253,2.2891,218.48,218.41,1.4394]
[1734268629454,5.41196328,218.61,218.41,1.4394]
[1734268629751,3.6539,218.6,218.42,8.65786748]
[1734268629948,1.5339,218.6,218.44,2.2895]
[1734268630150,2.12,218.59,218.41,1.4394]
[1734268630348,2.12,218.59,218.42,23.962858]
[1734268630548,2.12,218.59,218.47,2.2892]
[1734268630745,2.12,218.59,218.41,1.4394]
[1734268630949,2.12,218.59,218.42,16.96250842]
[1734268631155,2.2892,218.47,218.43,8.6594601]
[1734268631450,2.2892,218.47,218.44,5.19193829]
[1734268631451,2.12,218.46,218.44,5.19193829]
[1734268631760,2.12,218.49,218.45,5.18995382]
[1734268631951,2.12,218.49,218.41,1.4394]
[1734268632151,2.12,218.49,218.42,22.51404021]
[1734268632351,2.12,218.49,218.43,22.51404021]
[1734268632653,2.2887,218.52,218.45,2.2894]
[1734268632851,2.12,218.51,218.41,1.4394]